fUST/lending_fUST_20240415
["ID","MTS","AMOUNT","RATE_DAILY","PERIOD"]
[322635871,1713145840195,-500.68032662,0.00038356,7]
[322635872,1713145840205,-500.0,0.00038356,7]
[322635873,1713145840215,-500.0,0.00038356,7]
[322635874,1713145840226,-500.0,0.00038356,7]
[322635875,1713145840236,-501.88530257,0.00038356,7]
[322635876,1713145840245,-500.0,0.00038356,7]
[322635877,1713145840255,-523.2291265,0.00038356,7]
[322635878,1713145840269,-500.0,0.00038356,7]
[322635879,1713145840279,-602.05,0.00038356,7]
[322635880,1713145840288,-500.0,0.00038356,7]
[322635881,1713145840300,-2122.17,0.00038356,7]
[322635882,1713145840310,-500.0,0.00038356,7]
[322635883,1713145840322,-499.90248137,0.00038356,7]
[322635884,1713145840332,-500.0,0.00038356,7]
[322635885,1713145840341,-569.83,0.00038356,7]
[322635886,1713145840350,-500.0,0.00038356,7]
[322635887,1713145840359,-500.0,0.00038356,7]
[322635888,1713145840368,-500.0,0.00038356,7]
[322635889,1713145840377,-538.26,0.00038356,7]
[322635890,1713145840386,-500.0,0.00038356,7]
[322635891,1713145840395,-500.0,0.00038356,7]
[322635892,1713145840404,-1101.67,0.00038356,7]
[322635893,1713145840413,-500.0,0.00038356,7]
[322635894,1713145840422,-500.0,0.00038356,7]
[322635895,1713145840431,-6306.52,0.00038356,7]
[322635896,1713145840440,-500.0,0.00038356,7]
[322635897,1713145840449,-1496.62,0.00038356,7]
[322635898,1713145840458,-500.0,0.00038356,7]
[322635899,1713145840467,-500.0,0.00038356,7]
[322635900,1713145840476,-858.71,0.00038356,7]
[322635901,1713145840485,-500.0,0.00038356,7]
[322635902,1713145840494,-3635.64,0.00038356,7]
[322635903,1713145840502,-176.22142461,0.00038356,7]
[322635904,1713145840515,-500.0,0.00038356,7]
[322635905,1713145840524,-16243.66,0.00038356,7]
[322635906,1713145840533,-2133.5,0.00038356,7]
[322635907,1713145840543,-500.0,0.00038356,7]
[322635908,1713145840552,-570.61,0.00038356,7]
[322635909,1713145840561,-500.0,0.00038356,7]
[322635910,1713145840570,-4702.44,0.00038356,7]
[322635911,1713145840579,-500.0,0.00038356,7]
[322635912,1713145840588,-569.68,0.00038356,7]
[322635913,1713145840597,-501.10597998,0.00038356,7]
[322635914,1713145840606,-500.0,0.00038356,7]
[322635915,1713145840616,-500.0,0.00038356,7]
[322635916,1713145840625,-507.70241539,0.00038356,7]
[322635917,1713145840634,-2492.6,0.00038356,7]
[322635918,1713145840643,-186.82321834,0.00038356,7]
[322635919,1713145840652,-508.79,0.00038356,7]
[322635920,1713145840661,-500.0,0.00038356,7]
[322635921,1713145840671,-500.0,0.00038356,7]
[322635922,1713145840679,-500.0,0.00038356,7]
[322635923,1713145840688,-931.04,0.00038356,7]
[322635924,1713145840697,-500.0,0.00038356,7]
[322635925,1713145840706,-500.0,0.00038356,7]
[322635926,1713145840715,-500.0,0.00038356,7]
[322635927,1713145840728,-156.04174839,0.00038356,7]
[322635928,1713145840740,-516.07468781,0.00038356,7]
[322635929,1713145840753,-500.0,0.00038356,7]
[322635930,1713145840769,-576.58894019,0.00038356,7]
[322635931,1713145840780,-585.35500815,0.00038356,7]
[322635932,1713145840790,-43395.51,0.00038356,7]
[322635933,1713145840799,-500.0,0.00038356,7]
[322635934,1713145840811,-2147.29,0.00038356,7]
[322635935,1713145840823,-2111.44,0.00038356,7]
[322635936,1713145840834,-1032.57,0.00038356,7]
[322635937,1713145840846,-500.0,0.00038356,7]
[322635938,1713145840857,-1771.59,0.00038356,7]
[322635939,1713145840869,-2845.0,0.00038356,7]
[322635940,1713145840880,-500.0,0.00038356,7]
[322635941,1713145840891,-18968.46,0.00038356,7]
[322635942,1713145840902,-500.0,0.00038356,7]
[322635943,1713145840911,-4191.95,0.00038356,7]
[322635944,1713145840922,-500.0,0.00038356,7]
[322635945,1713145840934,-1993.06,0.00038356,7]
[322635946,1713145840945,-655.58,0.00038356,7]
[322635947,1713145840957,-500.0,0.00038356,7]
[322635948,1713145840968,-500.0,0.00038356,7]
[322635949,1713145840979,-684.55,0.00038356,7]
[322635950,1713145840991,-500.0,0.00038356,7]
[322635951,1713145841002,-8900.53,0.00038356,7]
[322635952,1713145841016,-500.0,0.00038356,7]
[322635953,1713145841025,-2266.81,0.00038356,7]
[322635954,1713145841035,-536.28,0.00038356,7]
[322635955,1713145841047,-500.0,0.00038356,7]
[322635956,1713145841059,-500.0,0.00038356,7]
[322635957,1713145841070,-501.80085222,0.00038356,7]
[322635958,1713145841083,-638.36,0.00038356,7]
[322635959,1713145841094,-500.0,0.00038356,7]
[322635960,1713145841105,-500.0,0.00038356,7]
[322635961,1713145841116,-756.87,0.00038356,7]
[322635962,1713145841127,-603.71100054,0.00038356,7]
[322635963,1713145841139,-500.0,0.00038356,7]
[322635964,1713145841150,-500.0,0.00038356,7]
[322635966,1713145841161,-500.0,0.00038356,7]
[322635968,1713145841173,-504.2052794,0.00038356,7]
[322635970,1713145841185,-767.72,0.00038356,7]
[322635972,1713145841197,-500.0,0.00038356,7]
[322635974,1713145841211,-880.58,0.00038356,7]
[322635975,1713145841222,-500.45632163,0.00038356,7]
[322635976,1713145841234,-4241.81,0.00038356,7]
[322635977,1713145841244,-2457.25,0.00038356,7]
[322635978,1713145841254,-232.65400904,0.00038356,2]
[322635979,1713145841268,-2434.79,0.00038356,7]
[322635980,1713145841278,-2037.22,0.00038356,7]
[322635981,1713145841289,-1254.75,0.00038356,7]
[322635982,1713145841300,-500.0,0.00038356,10]
[322635983,1713145841312,-500.0,0.00038356,10]
[322635984,1713145841323,-500.0,0.00038356,10]
[322635985,1713145841334,-500.0,0.00038356,10]
[322635986,1713145841346,-500.0,0.00038356,10]
[322635987,1713145841356,-500.0,0.00038356,10]
[322635988,1713145841366,-500.0,0.00038356,10]
[322635989,1713145841376,-6835.51,0.00038356,7]
[322635990,1713145841386,-494.28968635,0.00038356,7]
[322635991,1713145841397,-500.0,0.00038356,7]
[322635992,1713145841407,-601.57,0.00038356,7]
[322635993,1713145841418,-500.0,0.00038356,7]
[322635994,1713145841429,-893.90073126,0.00038393,2]
[322635995,1713145841439,-233.73606998,0.00038408,2]
[322635996,1713145841450,-893.90073126,0.00038462,2]
[322635997,1713145841461,-893.90073126,0.0003853,2]
[322635998,1713145841472,-2705.71302873,0.0003853,2]
[322635999,1713145841482,-174.32807513,0.00038609,2]
[322636000,1713145841493,-6922.82617707,0.00038628,4]
[322636001,1713145841503,-240.58418018,0.00038628,15]
[322636002,1713145841518,-295.28744021,0.00038628,15]
[322636003,1713145841528,-382.49093755,0.00038628,15]
[322636004,1713145841539,-500.0,0.00038628,15]
[322636005,1713145841551,-500.0,0.00038628,15]
[322636006,1713145841561,-500.0,0.00038628,15]
[322636007,1713145841572,-366.82775377,0.00038628,15]
[322636008,1713145841583,-500.0,0.00038628,15]
[322636009,1713145841594,-500.0,0.00038628,15]
[322636010,1713145841605,-500.0,0.00038628,15]
[322636011,1713145841616,-500.0,0.00038628,10]
[322636012,1713145841626,-500.0,0.00038628,10]
[322636013,1713145841638,-64200.79392945,0.00038629,4]
[322636014,1713145841649,-173.81,0.00038629,2]
[322636015,1713145841659,-500.0,0.00038629,10]
[322636016,1713145841669,-500.0,0.00038629,10]
[322636017,1713145841679,-500.0,0.00038629,10]
[322636018,1713145841690,-500.0,0.00038629,10]
[322636019,1713145841701,-500.0,0.00038629,10]
[322636020,1713145841711,-500.0,0.0003863,7]
[322636021,1713145841722,-500.0,0.0003863,7]
[322636022,1713145841732,-500.0,0.0003863,7]
[322636023,1713145841743,-531.62094572,0.0003863,7]
[322636024,1713145841753,-500.0,0.0003863,7]
[322636025,1713145841765,-1542.91,0.0003863,7]
[322636026,1713145841775,-500.0,0.0003863,7]
[322636027,1713145841785,-500.0,0.0003863,7]
[322636028,1713145841796,-500.0,0.0003863,7]
[322636029,1713145841806,-500.0,0.0003863,7]
[322636030,1713145841817,-1635.8,0.0003863,7]
[322636031,1713145841828,-339.9345852,0.0003863,7]
[322636032,1713145841839,-500.0,0.0003863,7]
[322636033,1713145841849,-500.0,0.0003863,7]
[322636034,1713145841859,-500.62680321,0.0003863,7]
[322636035,1713145841869,-500.0,0.0003863,7]
[322636036,1713145841880,-500.0,0.0003863,7]
[322636037,1713145841892,-500.78658967,0.0003863,7]
[322636038,1713145841902,-500.89219227,0.0003863,7]
[322636039,1713145841913,-489.64851524,0.0003863,7]
[322636040,1713145841923,-501.20342127,0.0003863,7]
[322636041,1713145841934,-500.0,0.0003863,7]
[322636042,1713145841944,-501.3291871,0.0003863,7]
[322636043,1713145841954,-500.0,0.0003863,7]
[322636044,1713145841965,-500.0,0.0003863,7]
[322636045,1713145841976,-537.49,0.0003863,7]
[322636046,1713145841986,-500.0,0.0003863,7]
[322636047,1713145841997,-500.0,0.0003863,7]
[322636048,1713145842009,-500.0,0.0003863,7]
[322636049,1713145842020,-1436.48,0.0003863,7]
[322636050,1713145842031,-500.0,0.0003863,7]
[322636051,1713145842042,-501.74231621,0.0003863,7]
[322636052,1713145842052,-500.0,0.0003863,7]
[322636053,1713145842063,-503.2737405,0.0003863,7]
[322636054,1713145842074,-500.0,0.0003863,7]
[322636055,1713145842084,-500.0,0.0003863,7]
[322636056,1713145842095,-611.75544081,0.0003863,7]
[322636057,1713145842106,-500.0,0.0003863,7]
[322636058,1713145842116,-504.08144795,0.0003863,7]
[322636059,1713145842126,-504.09352545,0.0003863,7]
[322636060,1713145842136,-500.0,0.0003863,7]
[322636061,1713145842146,-500.0,0.0003863,7]
[322636062,1713145842157,-500.0,0.0003863,7]
[322636063,1713145842166,-500.0,0.0003863,7]
[322636064,1713145842176,-504.5730023,0.0003863,7]
[322636065,1713145842185,-500.0,0.0003863,7]
[322636066,1713145842346,-501.24738634,0.0003863,7]
[322636067,1713145842357,-503.50238346,0.0003863,7]
[322636069,1713145842366,-504.56929426,0.0003863,7]
[322636070,1713145842375,-838.62,0.0003863,7]
[322636071,1713145842385,-500.0,0.0003863,7]
[322636073,1713145842394,-500.0,0.0003863,7]
[322636075,1713145842403,-500.0,0.0003863,7]
[322636077,1713145842413,-500.0,0.0003863,7]
[322636080,1713145842422,-500.0,0.0003863,7]
[322636082,1713145842431,-500.0,0.0003863,7]
[322636084,1713145842440,-504.29,0.0003863,7]
[322636085,1713145842449,-500.0,0.0003863,7]
[322636088,1713145842458,-500.0,0.0003863,7]
[322636091,1713145842467,-500.0,0.0003863,7]
[322636093,1713145842476,-500.0,0.0003863,7]
[322636094,1713145842485,-500.0,0.0003863,7]
[322636097,1713145842494,-507.53349252,0.0003863,7]
[322636099,1713145842504,-403.66573474,0.0003863,7]
[322636100,1713145842515,-500.0,0.0003863,7]
[322636101,1713145842525,-500.0,0.0003863,7]
[322636102,1713145842533,-500.0,0.0003863,7]
[322636103,1713145842543,-500.0,0.0003863,7]
[322636104,1713145842552,-271.31030546,0.0003863,7]
[322636105,1713145842562,-500.0,0.0003863,7]
[322636106,1713145842570,-500.0,0.0003863,7]
[322636107,1713145842580,-500.0,0.0003863,7]
[322636108,1713145842589,-714.64,0.0003863,7]
[322636109,1713145842598,-500.0,0.0003863,7]
[322636110,1713145842608,-500.0,0.0003863,7]
[322636111,1713145842617,-402.19991252,0.0003863,7]
[322636112,1713145842627,-504.2336834,0.0003863,7]
[322636113,1713145842637,-500.0,0.0003863,7]
[322636114,1713145842646,-502.64805512,0.0003863,7]
[322636115,1713145842656,-500.0,0.0003863,7]
[322636116,1713145842666,-500.0,0.0003863,7]
[322636117,1713145842675,-500.0,0.0003863,7]
[322636118,1713145842684,-500.0,0.0003863,7]
[322636119,1713145842694,-500.0,0.0003863,7]
[322636120,1713145842703,-676.79,0.0003863,7]
[322636121,1713145842712,-500.0,0.0003863,7]
[322636122,1713145842721,-515.0,0.0003863,7]
[322636123,1713145842730,-502.41762559,0.0003863,7]
[322636124,1713145842739,-500.0,0.0003863,7]
[322636125,1713145842749,-500.0,0.0003863,7]
[322636126,1713145842760,-500.0,0.0003863,7]
[322636127,1713145842770,-602.05,0.0003863,7]
[322636128,1713145842780,-500.77700145,0.0003863,7]
[322636129,1713145842789,-2122.17,0.0003863,7]
[322636130,1713145842798,-500.0,0.0003863,7]
[322636131,1713145842808,-500.0,0.0003863,7]
[322636132,1713145842817,-569.83,0.0003863,7]
[322636133,1713145842828,-508.29368457,0.0003863,7]
[322636134,1713145842837,-506.09760645,0.0003863,7]
[322636135,1713145842846,-501.85427426,0.0003863,7]
[322636136,1713145842855,-538.26,0.0003863,7]
[322636137,1713145842865,-501.49198803,0.0003863,7]
[322636138,1713145842874,-500.0,0.0003863,7]
[322636139,1713145842884,-1101.67,0.0003863,7]
[322636140,1713145842893,-500.0,0.0003863,7]
[322636141,1713145842902,-500.0,0.0003863,7]
[322636142,1713145842911,-6306.52,0.0003863,7]
[322636143,1713145842920,-516.86213252,0.0003863,7]
[322636144,1713145842929,-1496.62,0.0003863,7]
[322636145,1713145842938,-500.0,0.0003863,7]
[322636146,1713145842947,-150.68989415,0.0003863,7]
[322636147,1713145842956,-858.71,0.0003863,7]
[322636148,1713145842965,-500.0,0.0003863,7]
[322636149,1713145842973,-3635.64,0.0003863,7]
[322636150,1713145842983,-500.0,0.0003863,7]
[322636151,1713145842991,-16243.66,0.0003863,7]
[322636152,1713145843001,-2133.5,0.0003863,7]
[322636153,1713145843014,-500.0,0.0003863,7]
[322636154,1713145843023,-570.61,0.0003863,7]
[322636155,1713145843031,-500.0,0.0003863,7]
[322636156,1713145843040,-4702.44,0.0003863,7]
[322636157,1713145843049,-500.0,0.0003863,7]
[322636158,1713145843058,-569.68,0.0003863,7]
[322636159,1713145843067,-500.0,0.0003863,7]
[322636160,1713145843076,-500.56103648,0.0003863,7]
[322636161,1713145843085,-2492.6,0.0003863,7]
[322636162,1713145843094,-508.79,0.0003863,7]
[322636163,1713145843104,-500.0,0.0003863,7]
[322636164,1713145843113,-500.0,0.0003863,7]
[322636165,1713145843122,-500.0,0.0003863,7]
[322636166,1713145843130,-931.04,0.0003863,7]
[322636167,1713145843139,-500.0,0.0003863,7]
[322636168,1713145843149,-500.0,0.0003863,7]
[322636169,1713145843158,-500.0,0.0003863,7]
[322636170,1713145843166,-500.0,0.0003863,7]
[322636171,1713145843176,-43395.51,0.0003863,7]
[322636172,1713145843185,-525.32791637,0.0003863,7]
[322636173,1713145843194,-2147.29,0.0003863,7]
[322636174,1713145843204,-2111.44,0.0003863,7]
[322636175,1713145843214,-1032.57,0.0003863,7]
[322636176,1713145843226,-500.0,0.0003863,7]
[322636177,1713145843235,-1771.59,0.0003863,7]
[322636178,1713145843246,-2845.0,0.0003863,7]
[322636179,1713145843256,-500.0,0.0003863,7]
[322636180,1713145843268,-18968.46,0.0003863,7]
[322636181,1713145843278,-159.42660998,0.0003863,7]
[322636183,1713145843287,-4191.95,0.0003863,7]
[322636184,1713145843298,-264.66913962,0.0003863,7]
[322636185,1713145843307,-1993.06,0.0003863,7]
[322636186,1713145843316,-655.58,0.0003863,7]
[322636187,1713145843325,-500.0,0.0003863,7]
[322636189,1713145843335,-500.0,0.0003863,7]
[322636192,1713145843345,-684.55,0.0003863,7]
[322636193,1713145843355,-503.35985661,0.0003863,7]
[322636194,1713145843365,-8900.53,0.0003863,7]
[322636195,1713145843375,-500.0,0.0003863,7]
[322636196,1713145843385,-2266.81,0.0003863,7]
[322636197,1713145843394,-536.28,0.0003863,7]
[322636198,1713145843404,-504.28242374,0.0003863,7]
[322636199,1713145843414,-500.0,0.0003863,7]
[322636200,1713145843423,-638.36,0.0003863,7]
[322636202,1713145843433,-500.0,0.0003863,7]
[322636203,1713145843443,-500.0,0.0003863,7]
[322636204,1713145843453,-756.87,0.0003863,7]
[322636206,1713145843463,-500.0,0.0003863,7]
[322636207,1713145843472,-500.0,0.0003863,7]
[322636209,1713145843482,-500.0,0.0003863,7]
[322636210,1713145843491,-767.72,0.0003863,7]
[322636211,1713145843501,-500.0,0.0003863,7]
[322636212,1713145843514,-880.58,0.0003863,7]
[322636213,1713145843525,-4241.81,0.0003863,7]
[322636215,1713145843535,-2457.25,0.0003863,7]
[322636216,1713145843545,-2434.79,0.0003863,7]
[322636217,1713145843554,-2037.22,0.0003863,7]
[322636218,1713145843563,-1254.75,0.0003863,7]
[322636219,1713145843573,-6835.51,0.0003863,7]
[322636220,1713145843583,-501.56693012,0.0003863,7]
[322636221,1713145843592,-601.57,0.0003863,7]
[322636222,1713145843601,-501.99873083,0.0003863,7]
[322636223,1713145843611,-6624.1542,0.00038641,30]
[322636224,1713145843620,-171.9880552,0.000388,2]
[322636225,1713145843631,-2699.04738396,0.000388,120]
[322636226,1713145843641,-166.666666,0.00038888,2]
[322636227,1713145843650,-3000.0,0.000389,20]
[322636228,1713145843660,-328.77714974,0.00038902,4]
[322636229,1713145843669,-242.06979045,0.00038902,4]
[322636230,1713145843679,-666.57809185,0.00038902,4]
[322636231,1713145843688,-500.0,0.00038902,10]
[322636232,1713145843696,-200.93581071,0.00038903,4]
[322636233,1713145843706,-3754.02039532,0.00038903,4]
[322636234,1713145843714,-173.79,0.00038903,2]
[322636235,1713145843723,-160.67365099,0.00038903,30]
[322636236,1713145843732,-169.7053437,0.00038903,10]
[322636237,1713145843741,-500.0,0.00038904,7]
[322636238,1713145843751,-500.0,0.00038904,7]
[322636239,1713145843764,-502.874064,0.00038904,7]
[322636240,1713145843772,-371.87781855,0.00038904,7]
[322636241,1713145843782,-1542.91,0.00038904,7]
[322636242,1713145843791,-500.0,0.00038904,7]
[322636243,1713145843800,-500.0,0.00038904,7]
[322636244,1713145843809,-500.0,0.00038904,7]
[322636245,1713145843818,-500.0,0.00038904,7]
[322636246,1713145843827,-1635.8,0.00038904,7]
[322636247,1713145843836,-500.92534821,0.00038904,7]
[322636248,1713145843845,-172.04627777,0.00038904,7]
[322636249,1713145843853,-500.0,0.00038904,7]
[322636250,1713145843863,-500.0,0.00038904,7]
[322636251,1713145843871,-500.0,0.00038904,7]
[322636252,1713145843880,-500.0,0.00038904,7]
[322636253,1713145843889,-500.0,0.00038904,7]
[322636254,1713145843898,-537.49,0.00038904,7]
[322636255,1713145843908,-500.0,0.00038904,7]
[322636256,1713145843917,-500.0,0.00038904,7]
[322636257,1713145843926,-500.0,0.00038904,7]
[322636258,1713145843935,-1436.48,0.00038904,7]
[322636259,1713145843944,-500.0,0.00038904,7]
[322636260,1713145843953,-500.0,0.00038904,7]
[322636261,1713145843962,-500.0,0.00038904,7]
[322636262,1713145843972,-501.78586582,0.00038904,7]
[322636263,1713145843981,-349.79483666,0.00038904,7]
[322636264,1713145843990,-500.0,0.00038904,7]
[322636265,1713145844000,-500.0,0.00038904,7]
[322636266,1713145844014,-500.0,0.00038904,7]
[322636267,1713145844023,-500.0,0.00038904,7]
[322636268,1713145844032,-500.0,0.00038904,7]
[322636269,1713145844041,-838.62,0.00038904,7]
[322636270,1713145844051,-500.0,0.00038904,7]
[322636271,1713145844060,-500.0,0.00038904,7]
[322636272,1713145844069,-274.05696926,0.00038904,7]
[322636273,1713145844078,-512.86168479,0.00038904,7]
[322636274,1713145844087,-500.0,0.00038904,7]
[322636275,1713145844096,-500.0,0.00038904,7]
[322636276,1713145844105,-504.29,0.00038904,7]
[322636277,1713145844115,-500.0,0.00038904,7]
[322636278,1713145844125,-512.14031503,0.00038904,7]
[322636279,1713145844134,-299.49903022,0.00038904,7]
[322636288,1713146013019,283555.65818901,0.00042281,60]
[322636289,1713146052570,4324.94823011,0.00042247,30]
[322636290,1713146060161,156.2194527,0.00042247,120]
[322636291,1713146073591,154.04320991,0.00042247,120]
[322636293,1713146757143,-241.07910305,0.00027394,2]
[322636294,1713146757164,-304.24078065,0.00027395,2]
[322636295,1713146757186,-167.253414,0.00027397,2]
[322636296,1713146757207,-160.986053,0.00027397,2]
[322636297,1713146757230,-166.666666,0.00035704,2]
[322636298,1713146757251,-662.7739775,0.0003621,2]
[322636299,1713146757272,-400.0,0.00036389,2]
[322636300,1713146757294,-562.58208776,0.0003639,2]
[322636301,1713146827102,-400.0,0.00036389,2]
[322636302,1713146827126,-154.0,0.0003639,2]
[322636303,1713146827150,-267.6245226,0.0003639,2]
[322636304,1713146835113,-2883.52867557,0.0003639,2]
[322636305,1713147012839,193.66769238,0.00028764,2]
[322636347,1713147032067,-381.12552943,0.00036289,2]
[322636349,1713147032077,-10553.77694886,0.00036383,2]
[322636350,1713147032087,-154.78330338,0.00036383,4]
[322636352,1713147032098,-3471.44571216,0.00036384,4]
[322636354,1713147032107,-1281.4854646,0.00036385,4]
[322636356,1713147032117,-400.0,0.00036385,2]
[322636358,1713147032127,-154.78330338,0.00036386,4]
[322636360,1713147032136,-706.03353352,0.00036386,4]
[322636362,1713147032145,-3520.06221029,0.00036386,4]
[322636364,1713147032156,-2854.55085205,0.00036386,4]
[322636377,1713147032299,-659.42660998,0.00036388,4]
[322636379,1713147032309,-309.0,0.0003639,2]
[322636381,1713147032319,-21176.26471407,0.0003639,2]
[322636383,1713147032329,-400.80672637,0.0003639,4]
[322636385,1713147032339,-173.13506251,0.00036578,8]
[322636386,1713147032348,-166.666666,0.00036678,2]
[322636388,1713147032358,-917.01919934,0.00036757,2]
[322636390,1713147032368,-188.53452107,0.00036857,2]
[322636392,1713147032377,-155.47632639,0.00036957,4]
[322636394,1713147032387,-173.13506249,0.00037376,8]
[322636396,1713147032396,-166.666666,0.00037651,2]
[322636398,1713147032407,-173.13506249,0.00038174,8]
[322636400,1713147032419,-232.65400904,0.00038353,4]
[322636401,1713147032429,-438.92987866,0.00038353,4]
[322636403,1713147032439,-616.98612097,0.00038353,4]
[322636405,1713147032449,-155.22972724,0.00038353,4]
[322636407,1713147032459,-159.84826861,0.00038353,4]
[322636409,1713147032469,-181.90265134,0.00038353,4]
[322636411,1713147032479,-192.92355944,0.00038353,4]
[322636412,1713147032488,-155.25227274,0.00038353,4]
[322636414,1713147032498,-327.8289189,0.00038353,4]
[322636416,1713147032508,-155.48751395,0.00038353,4]
[322636418,1713147032518,-155.17172241,0.00038353,4]
[322636420,1713147032527,-155.83433995,0.00038353,4]
[322636421,1713147032536,-1493.20586998,0.00038353,4]
[322636423,1713147032545,-4892.65468141,0.00038353,7]
[322636425,1713147032554,-465.39337493,0.00038353,4]
[322636427,1713147032564,-155.58083407,0.00038353,4]
[322636429,1713147032573,-155.00800103,0.00038353,4]
[322636430,1713147032582,-610.92864816,0.00038353,4]
[322636431,1713147032592,-2630.50063572,0.00038353,4]
[322636432,1713147032604,-291.4285814,0.00038353,7]
[322636433,1713147032613,-230.97215258,0.00038353,4]
[322636434,1713147032621,-504.76178305,0.00038353,2]
[322636435,1713147032631,-540.75726453,0.00038353,4]
[322636437,1713147032640,-1503.83091307,0.00038353,4]
[322636438,1713147032652,-672.08902285,0.00038353,4]
[322636440,1713147032661,-155.05555193,0.00038353,4]
[322636442,1713147032674,-653.50432398,0.00038353,4]
[322636444,1713147032685,-244.72834785,0.00038353,4]
[322636446,1713147032695,-975.27605815,0.00038353,4]
[322636448,1713147032704,-606.12455849,0.00038353,4]
[322636450,1713147032713,-800.91298091,0.00038353,4]
[322636452,1713147032723,-500.0,0.00038353,2]
[322636454,1713147032733,-5378.63023947,0.00038353,4]
[322636465,1713147038277,-436.47314953,0.00038353,4]
[322636466,1713147038286,-500.0,0.00038354,15]
[322636467,1713147038296,-223.66629675,0.00038354,15]
[322636469,1713147038306,-891.48947995,0.00038354,4]
[322636471,1713147038315,-3754.02039532,0.00038354,4]
[322636473,1713147038325,-666.57809185,0.00038354,4]
[322636474,1713147038333,-328.77714974,0.00038354,4]
[322636475,1713147038342,-278.39872309,0.00038354,4]
[322636476,1713147038351,-157.99726521,0.00038354,4]
[322636477,1713147038360,-1945.15720662,0.00038354,4]
[322636478,1713147038370,-241.93772538,0.00038354,4]
[322636479,1713147038379,-175.04321249,0.00038354,4]
[322636480,1713147038391,-130.33197539,0.00038354,4]
[322636481,1713147038400,-473.37234695,0.00038354,4]
[322636482,1713147038409,-6922.82617707,0.00038354,4]
[322636483,1713147038423,-64200.79392945,0.00038355,4]
[322636484,1713147038432,-1314.10912578,0.00038355,4]
[322636485,1713147038441,-151.0,0.00038355,2]
[322636486,1713147038450,-151.0,0.00038355,2]
[322636487,1713147038458,-151.0,0.00038355,2]
[322636488,1713147038467,-13801.86860847,0.00038356,5]
[322636489,1713147038477,-1381.91,0.00038356,7]
[322636491,1713147038486,-585.74559228,0.00038356,7]
[322636492,1713147038495,-501.78586582,0.00038356,7]
[322636493,1713147038505,-500.0,0.00038356,7]
[322636494,1713147038514,-768.73,0.00038356,7]
[322636495,1713147038523,-500.0,0.00038356,7]
[322636496,1713147038532,-500.0,0.00038356,7]
[322636497,1713147038541,-500.0,0.00038356,7]
[322636498,1713147038550,-500.0,0.00038356,7]
[322636499,1713147038560,-512.14031503,0.00038356,7]
[322636500,1713147038570,-500.0,0.00038356,7]
[322636501,1713147038579,-500.0,0.00038356,7]
[322636502,1713147038588,-500.0,0.00038356,7]
[322636503,1713147038597,-500.0,0.00038356,7]
[322636504,1713147038609,-655.09,0.00038356,7]
[322636505,1713147038618,-500.0,0.00038356,7]
[322636506,1713147038626,-442.348002,0.00038356,7]
[322636507,1713147038635,-500.0,0.00038356,7]
[322636508,1713147038645,-500.0,0.00038356,7]
[322636509,1713147038654,-500.0,0.00038356,7]
[322636510,1713147038664,-500.0,0.00038356,7]
[322636511,1713147038673,-500.0,0.00038356,7]
[322636512,1713147038684,-500.0,0.00038356,7]
[322636513,1713147038694,-501.35581257,0.00038356,7]
[322636514,1713147038703,-500.0,0.00038356,7]
[322636515,1713147038712,-500.0,0.00038356,7]
[322636516,1713147038721,-506.09760645,0.00038356,7]